fUST/lending_fUST_20250707
["ID","MTS","AMOUNT","RATE_DAILY","PERIOD"]
[370092484,1751878289801,-460.0,0.00018893,2]
[370092485,1751878289812,-172.762535,0.00018893,2]
[370092486,1751878289825,-151.0,0.00018893,2]
[370092487,1751878289834,-460.0,0.00018893,2]
[370092488,1751878289845,-460.0,0.00018893,2]
[370092489,1751878289855,-460.0,0.00018893,2]
[370092490,1751878289865,-460.0,0.00018893,2]
[370092491,1751878289875,-460.0,0.00018893,2]
[370092492,1751878289886,-579.14,0.00018893,2]
[370092493,1751878289896,-151.0,0.00018893,2]
[370092494,1751878289906,-151.0,0.00018893,2]
[370092495,1751878289916,-251.765691,0.00018893,2]
[370092496,1751878289926,-251.765691,0.00018893,2]
[370092497,1751878289938,-1152.046431,0.00018893,2]
[370092498,1751878289949,-151.0,0.00018893,2]
[370092499,1751878289959,-320.333785,0.00018893,2]
[370092500,1751878289970,-320.333785,0.00018893,2]
[370092501,1751878289981,-151.0,0.00018893,2]
[370092502,1751878289992,-174.567543,0.00018893,2]
[370092503,1751878290004,-174.567543,0.00018893,2]
[370092504,1751878290014,-5701.90415068,0.000189,2]
[370092505,1751878290024,-1551.0,0.00018907,2]
[370092506,1751878290034,-1081.0,0.00018907,2]
[370092507,1751878290046,-2000.0,0.00018916,2]
[370092508,1751878290058,-2000.0,0.0001892,2]
[370092509,1751878290069,-2000.0,0.0001892,2]
[370092510,1751878290079,-317.49538239,0.0001892,2]
[370092511,1751878290091,-2000.0,0.0001892,2]
[370092512,1751878290101,-2000.0,0.0001892,2]
[370092513,1751878290112,-2000.0,0.0001892,2]
[370092514,1751878290122,-350.876114,0.0001892,2]
[370092515,1751878290132,-1087.94650294,0.00018921,2]
[370092516,1751878290143,-1000.0,0.00018921,2]
[370092517,1751878290152,-1000.0,0.00018921,2]
[370092518,1751878290163,-1000.0,0.00018921,2]
[370092519,1751878290173,-1000.0,0.00018921,2]
[370092520,1751878290182,-1000.0,0.00018921,2]
[370092521,1751878290193,-1000.0,0.00018921,2]
[370092522,1751878290203,-1000.0,0.00018921,2]
[370092523,1751878290214,-1000.0,0.00018921,2]
[370092524,1751878290224,-190.6115,0.00018921,2]
[370092525,1751878290235,-190.6115,0.00018921,2]
[370092526,1751878290245,-463.884223,0.00018921,2]
[370092527,1751878290255,-463.884223,0.00018921,2]
[370092528,1751878290265,-309.444679,0.00018921,2]
[370092529,1751878290275,-309.444679,0.00018921,2]
[370092530,1751878290285,-1551.0,0.00018934,2]
[370092531,1751878290295,-1081.0,0.00018934,2]
[370092532,1751878290305,-584.495755,0.00018941,2]
[370092533,1751878290316,-584.495755,0.00018941,2]
[370092534,1751878290327,-264.124102,0.00018941,2]
[370092535,1751878290338,-264.124102,0.00018941,2]
[370092536,1751878290348,-902.138538,0.00018941,2]
[370092537,1751878290359,-902.138538,0.00018941,2]
[370092538,1751878290369,-524.98484073,0.00018941,2]
[370092539,1751878290379,-160.0,0.00018941,2]
[370092540,1751878290389,-160.0,0.00018941,2]
[370092541,1751878290400,-230.48668418,0.00018941,2]
[370092542,1751878290411,-837.79946008,0.00018941,2]
[370092543,1751878290421,-160.0,0.00018941,2]
[370092544,1751878290431,-160.0,0.00018941,2]
[370092545,1751878290441,-160.0,0.00018941,2]
[370092546,1751878290450,-214.06929976,0.00018941,2]
[370092547,1751878290461,-12584.46609586,0.00018941,2]
[370092548,1751878290470,-160.0,0.00018941,2]
[370092549,1751878290481,-160.0,0.00018941,2]
[370092550,1751878290491,-160.0,0.00018941,2]
[370092551,1751878290502,-215.21338352,0.00018941,2]
[370092552,1751878290512,-160.0,0.00018941,2]
[370092553,1751878290522,-848.27993403,0.00018941,2]
[370092554,1751878290533,-181.94596512,0.00018944,2]
[370092555,1751878290543,-1000.0,0.00018944,2]
[370092556,1751878290555,-1000.0,0.00018944,2]
[370092557,1751878290564,-569.46675254,0.00018944,2]
[370092558,1751878290575,-1000.0,0.00018944,2]
[370092559,1751878290585,-1000.0,0.00018944,2]
[370092560,1751878290595,-1000.0,0.00018944,2]
[370092561,1751878290605,-665.45578681,0.00018944,2]
[370092562,1751878290615,-1000.0,0.00018944,2]
[370092563,1751878290625,-160.0,0.00018948,2]
[370092564,1751878290635,-1551.0,0.00018961,2]
[370092565,1751878290645,-1081.0,0.00018961,2]
[370092566,1751878290656,-500.0,0.00018965,2]
[370092567,1751878290667,-600.0,0.00018982,2]
[370092568,1751878290678,-167.04414646,0.00018982,2]
[370092569,1751878290688,-1551.0,0.00018989,2]
[370092570,1751878290698,-1081.0,0.00018989,2]
[370092571,1751878290708,-151.0,0.00018993,2]
[370092572,1751878290897,-151.0,0.00018993,2]
[370092573,1751878290908,-156.43872,0.00018993,2]
[370092574,1751878290917,-151.613201,0.00018993,2]
[370092575,1751878290927,-151.0,0.00018993,2]
[370092576,1751878290936,-151.0,0.00018993,2]
[370092577,1751878290945,-278.125943,0.00018993,2]
[370092578,1751878290955,-234.572647,0.00018993,2]
[370092579,1751878290963,-234.572647,0.00018993,2]
[370092580,1751878290972,-151.0,0.00018993,2]
[370092581,1751878290980,-185.862515,0.00018993,2]
[370092582,1751878290989,-185.862515,0.00018993,2]
[370092583,1751878290998,-151.0,0.00018993,2]
[370092584,1751878291009,-230.574355,0.00018993,2]
[370092585,1751878291018,-151.0,0.00018993,2]
[370092586,1751878291028,-192.279556,0.00018993,2]
[370092587,1751878291037,-535.243736,0.00018993,2]
[370092588,1751878291047,-535.243736,0.00018993,2]
[370092589,1751878291057,-204.380776,0.00018993,2]
[370092590,1751878291067,-211.885957,0.00018993,2]
[370092591,1751878291076,-211.885957,0.00018993,2]
[370092592,1751878291085,-203.424781,0.00018993,2]
[370092593,1751878291096,-203.424781,0.00018993,2]
[370092594,1751878291105,-3702.021644,0.00018993,2]
[370092595,1751878291115,-3702.021644,0.00018993,2]
[370092596,1751878291124,-23419.04637963,0.00019,2]
[370092597,1751878291134,-6401.74187324,0.00019,20]
[370092598,1751878291143,-302.740728,0.00019,2]
[370092599,1751878291153,-302.740728,0.00019,2]
[370092600,1751878291163,-151.0,0.00019,2]
[370092601,1751878291173,-151.0,0.00019,2]
[370092602,1751878291184,-272.50166,0.00019,2]
[370092603,1751878291193,-272.50166,0.00019,2]
[370092604,1751878291203,-350.876114,0.00019002,2]
[370092605,1751878291212,-185.6621204,0.0001901,2]
[370092606,1751878291222,-151.0,0.00019016,2]
[370092607,1751878291231,-1564.50017929,0.00019016,2]
[370092608,1751878291241,-1093.0,0.00019016,2]
[370092609,1751878291251,-500.0,0.00019048,2]
[370092610,1751878291261,-475.24,0.00019052,2]
[370092611,1751878291270,-460.0,0.00019052,2]
[370092612,1751878291281,-634.64,0.00019052,2]
[370092613,1751878291291,-460.0,0.00019052,2]
[370092614,1751878291300,-460.0,0.00019052,2]
[370092615,1751878291310,-578.27,0.00019052,2]
[370092616,1751878291321,-714.52,0.00019052,2]
[370092617,1751878291331,-3372.58,0.00019052,2]
[370092618,1751878291341,-460.0,0.00019052,2]
[370092619,1751878291351,-557.47,0.00019052,2]
[370092620,1751878291361,-476.15,0.00019052,2]
[370092621,1751878291371,-460.0,0.00019056,2]
[370092622,1751878291380,-460.0,0.00019056,2]
[370092623,1751878291390,-460.0,0.00019056,2]
[370092624,1751878291400,-460.0,0.00019056,2]
[370092625,1751878291410,-460.0,0.00019056,2]
[370092626,1751878291419,-460.0,0.00019056,2]
[370092627,1751878291429,-460.0,0.00019056,2]
[370092628,1751878291439,-460.0,0.00019056,2]
[370092629,1751878291449,-460.0,0.00019056,2]
[370092630,1751878291459,-5018.54,0.00019056,2]
[370092631,1751878291469,-460.0,0.00019056,2]
[370092632,1751878291479,-473.43,0.00019056,2]
[370092633,1751878291491,-978.43,0.00019056,2]
[370092634,1751878291501,-877.49,0.00019056,2]
[370092635,1751878291511,-460.0,0.00019056,2]
[370092636,1751878291522,-460.0,0.00019056,2]
[370092637,1751878291531,-460.0,0.00019056,2]
[370092638,1751878291541,-4865.84,0.00019056,2]
[370092639,1751878291551,-460.0,0.00019056,2]
[370092640,1751878291561,-8429.87,0.00019056,2]
[370092641,1751878291570,-1078.12,0.00019056,2]
[370092642,1751878291580,-460.0,0.00019056,2]
[370092643,1751878291590,-337.46546598,0.00019056,2]
[370092644,1751878291600,-460.0,0.00019056,2]
[370092645,1751878291610,-460.0,0.00019056,2]
[370092646,1751878291619,-460.0,0.00019056,2]
[370092647,1751878291629,-814.88,0.00019056,2]
[370092648,1751878291638,-460.0,0.00019056,2]
[370092649,1751878291648,-1523.08,0.00019056,2]
[370092650,1751878291658,-758.47,0.00019057,2]
[370092651,1751878291668,-460.0,0.00019057,2]
[370092652,1751878291679,-460.0,0.00019057,2]
[370092653,1751878291689,-460.0,0.00019057,2]
[370092654,1751878291698,-460.0,0.00019057,2]
[370092655,1751878291708,-648.63,0.00019057,2]
[370092656,1751878291717,-4741.33,0.00019057,2]
[370092657,1751878291727,-815.67,0.00019057,2]
[370092658,1751878291737,-4342.85,0.00019057,2]
[370092659,1751878291747,-460.0,0.00019057,2]
[370092660,1751878291756,-460.0,0.00019057,2]
[370092661,1751878291766,-1322.28,0.00019057,2]
[370092662,1751878291775,-460.0,0.00019058,2]
[370092663,1751878291785,-612.32,0.00019058,2]
[370092664,1751878291795,-586.81,0.00019058,2]
[370092665,1751878291805,-460.0,0.00019058,2]
[370092666,1751878291814,-460.0,0.00019058,2]
[370092667,1751878291826,-978.47,0.00019058,2]
[370092668,1751878291836,-1929.95,0.00019058,2]
[370092669,1751878291845,-460.0,0.00019058,2]
[370092670,1751878291855,-479.04,0.00019058,2]
[370092671,1751878291864,-460.0,0.00019058,2]
[370092672,1751878291875,-460.0,0.00019058,2]
[370092673,1751878291886,-460.0,0.00019058,2]
[370092674,1751878291895,-961.6,0.00019058,2]
[370092675,1751878291905,-1232.5,0.00019058,2]
[370092676,1751878291915,-2371.65,0.00019058,2]
[370092677,1751878291925,-460.0,0.00019058,2]
[370092678,1751878291936,-1116.74,0.00019058,2]
[370092679,1751878291945,-4190.5,0.00019058,2]
[370092680,1751878291955,-460.0,0.00019058,2]
[370092681,1751878291964,-460.0,0.0001906,2]
[370092682,1751878291974,-460.0,0.0001906,2]
[370092683,1751878291983,-460.0,0.0001906,2]
[370092684,1751878291992,-460.0,0.0001906,2]
[370092685,1751878292002,-460.0,0.0001906,2]
[370092686,1751878292011,-571.40306086,0.0001906,2]
[370092687,1751878292020,-504.54,0.0001906,2]
[370092688,1751878292030,-460.0,0.0001906,2]
[370092689,1751878292039,-460.0,0.0001906,2]
[370092690,1751878292049,-460.0,0.0001906,2]
[370092691,1751878292060,-813.31,0.0001906,2]
[370092692,1751878292069,-460.0,0.0001906,2]
[370092693,1751878292079,-696.66,0.0001906,2]
[370092694,1751878292089,-460.0,0.0001906,2]
[370092695,1751878292098,-460.0,0.0001906,2]
[370092696,1751878292108,-460.0,0.0001906,2]
[370092697,1751878292117,-460.0,0.0001906,2]
[370092698,1751878292127,-460.0,0.0001906,2]
[370092699,1751878292137,-460.0,0.0001906,2]
[370092700,1751878292147,-460.0,0.0001906,2]
[370092701,1751878292156,-460.0,0.0001906,2]
[370092702,1751878292165,-460.0,0.0001906,2]
[370092703,1751878292175,-460.0,0.0001906,2]
[370092704,1751878292185,-642.4,0.0001906,2]
[370092705,1751878292195,-989.64,0.0001906,2]
[370092706,1751878292205,-591.78,0.0001906,2]
[370092707,1751878292217,-460.0,0.0001906,2]
[370092708,1751878292227,-460.0,0.0001906,2]
[370092709,1751878292238,-549.97,0.0001906,2]
[370092710,1751878292248,-460.0,0.0001906,2]
[370092711,1751878292257,-668.91,0.0001906,2]
[370092712,1751878292267,-460.0,0.0001906,2]
[370092713,1751878292276,-460.0,0.0001906,2]
[370092714,1751878292286,-1175.75,0.0001906,2]
[370092715,1751878292296,-460.0,0.0001906,2]
[370092716,1751878292307,-575.32,0.0001906,2]
[370092717,1751878292317,-501.04,0.0001906,2]
[370092718,1751878292327,-460.0,0.0001906,2]
[370092719,1751878292337,-460.0,0.0001906,2]
[370092720,1751878292347,-460.0,0.0001906,2]
[370092721,1751878292358,-460.0,0.0001906,2]
[370092722,1751878292368,-460.0,0.0001906,2]
[370092723,1751878292378,-460.0,0.0001906,2]
[370092724,1751878292387,-1816.74,0.0001906,2]
[370092725,1751878292396,-460.0,0.0001906,2]
[370092726,1751878292406,-460.0,0.0001906,2]
[370092727,1751878292415,-323.61,0.0001906,2]
[370092728,1751878292426,-627.71,0.0001906,2]
[370092729,1751878292436,-1190.73,0.0001906,2]
[370092730,1751878292446,-460.0,0.0001906,2]
[370092731,1751878292455,-1436.76,0.0001906,2]
[370092732,1751878292465,-460.0,0.0001906,2]
[370092733,1751878292474,-460.0,0.0001906,2]
[370092734,1751878292483,-744.3,0.0001906,2]
[370092735,1751878292493,-460.0,0.00019061,2]
[370092736,1751878292502,-460.0,0.00019061,2]
[370092737,1751878292512,-460.0,0.00019061,2]
[370092738,1751878292522,-460.0,0.00019061,2]
[370092739,1751878292532,-460.0,0.00019061,2]
[370092740,1751878292542,-1626.87,0.00019061,2]
[370092741,1751878292551,-1041.83,0.00019061,2]
[370092742,1751878292561,-460.0,0.00019061,2]
[370092743,1751878292570,-460.0,0.00019061,2]
[370092744,1751878292580,-1219.94,0.00019061,2]
[370092745,1751878292590,-11783.72,0.00019061,2]
[370092746,1751878292599,-516.28,0.00019061,2]
[370092747,1751878292608,-1126.4,0.00019061,2]
[370092748,1751878292618,-3083.89,0.00019061,2]
[370092749,1751878292627,-746.91,0.00019061,2]
[370092750,1751878292637,-460.0,0.00019061,2]
[370092751,1751878292646,-1051.67,0.00019061,2]
[370092752,1751878292655,-460.0,0.00019062,2]
[370092753,1751878292665,-460.0,0.00019062,2]
[370092754,1751878292675,-566.95,0.00019062,2]
[370092755,1751878292685,-591.6,0.00019062,2]
[370092756,1751878292694,-460.0,0.00019062,2]
[370092757,1751878292704,-1680.07552712,0.00019072,2]
[370092758,1751878292713,-350.876114,0.00019085,2]
[370092759,1751878292722,-7880.90807545,0.00019114,2]
[370092760,1751878292732,-500.0,0.0001913,2]
[370092761,1751878292741,-460.0,0.0001916,2]
[370092762,1751878292751,-296.56201401,0.0001916,2]
[370092763,1751878292760,-1466.61,0.0001916,2]
[370092764,1751878292769,-1693.65,0.0001916,2]
[370092765,1751878292779,-460.0,0.0001916,2]
[370092766,1751878292788,-511.73,0.0001916,2]
[370092767,1751878292798,-5131.36,0.0001916,2]
[370092768,1751878292807,-460.0,0.0001916,2]
[370092769,1751878292817,-927.78,0.0001916,2]
[370092770,1751878292830,-295.03604671,0.0001916,2]
[370092771,1751878292841,-2375.1,0.0001916,2]
[370092772,1751878292850,-4148.36,0.0001916,2]
[370092773,1751878292860,-460.0,0.0001916,2]
[370092774,1751878292870,-1006.41,0.0001916,2]
[370092775,1751878292879,-460.0,0.0001916,2]
[370092776,1751878292888,-9521.95,0.0001916,2]
[370092777,1751878292898,-2677.89,0.0001916,2]
[370092778,1751878292907,-927.92,0.0001916,2]
[370092779,1751878292917,-460.0,0.0001916,2]
[370092780,1751878292926,-460.0,0.00019161,2]
[370092781,1751878292937,-460.0,0.00019161,2]
[370092782,1751878292946,-652.73,0.00019161,2]
[370092783,1751878292955,-460.0,0.00019161,2]
[370092784,1751878292964,-460.0,0.00019161,2]
[370092785,1751878292973,-460.0,0.00019161,2]
[370092786,1751878292983,-460.0,0.00019161,2]
[370092787,1751878292992,-460.0,0.00019161,2]
[370092788,1751878293002,-460.0,0.00019161,2]
[370092789,1751878293011,-460.0,0.00019161,2]
[370092790,1751878293020,-460.0,0.00019161,2]
[370092791,1751878293030,-443.00433084,0.00019161,2]
[370092792,1751878293039,-460.0,0.00019161,2]
[370092793,1751878293049,-529.71461052,0.00019161,2]
[370092794,1751878293059,-460.0,0.00019161,2]
[370092795,1751878293069,-460.0,0.00019161,2]
[370092796,1751878293079,-460.0,0.00019161,2]
[370092797,1751878293089,-460.0,0.00019161,2]
[370092798,1751878293098,-460.0,0.00019161,2]
[370092799,1751878293107,-530.99041635,0.00019161,2]
[370092800,1751878293118,-590.05,0.00019161,2]
[370092801,1751878293127,-642.41,0.00019161,2]
[370092802,1751878293137,-460.0,0.00019161,2]
[370092803,1751878293147,-773.469148,0.00019161,2]
[370092804,1751878293156,-773.469148,0.00019161,2]
[370092805,1751878293167,-460.0,0.00019161,2]
[370092806,1751878293176,-460.0,0.00019161,2]
[370092807,1751878293186,-1814.25,0.00019161,2]
[370092808,1751878293195,-460.0,0.00019161,2]
[370092809,1751878293205,-460.0,0.00019161,2]
[370092810,1751878293215,-780.98,0.00019161,2]
[370092811,1751878293224,-460.0,0.00019161,2]
[370092812,1751878293234,-460.0,0.00019161,2]
[370092813,1751878293244,-460.0,0.00019161,2]
[370092814,1751878293253,-739.46,0.00019161,2]
[370092815,1751878293263,-460.0,0.00019161,2]
[370092816,1751878293272,-460.0,0.00019161,2]
[370092817,1751878293283,-1473.58,0.00019161,2]
[370092818,1751878293292,-670.12472,0.00019161,2]
[370092819,1751878293302,-670.12472,0.00019161,2]
[370092820,1751878293312,-460.0,0.00019161,2]
[370092821,1751878293321,-444.71591732,0.00019161,2]
[370092822,1751878293331,-460.0,0.00019161,2]
[370092823,1751878293341,-460.0,0.00019161,2]
[370092824,1751878293351,-460.0,0.00019161,2]
[370092825,1751878293360,-460.0,0.00019161,2]
[370092826,1751878293370,-537.97,0.00019161,2]
[370092827,1751878293381,-549.339809,0.00019161,2]
[370092828,1751878293390,-411.03,0.00019161,2]
[370092829,1751878293401,-474.52,0.00019161,2]
[370092830,1751878293411,-460.0,0.00019161,2]
[370092831,1751878293420,-460.0,0.00019161,2]
[370092832,1751878293430,-460.0,0.00019161,2]
[370092833,1751878293440,-460.0,0.00019161,2]
[370092834,1751878293451,-515.18,0.00019161,2]
[370092835,1751878293460,-463.45,0.00019161,2]
[370092836,1751878293470,-569.19,0.00019161,2]
[370092837,1751878293480,-460.0,0.00019161,2]
[370092838,1751878293490,-474.81,0.00019161,2]
[370092839,1751878293500,-590.63,0.00019161,2]
[370092840,1751878293510,-517.21,0.00019161,2]
[370092841,1751878293520,-600.59,0.00019161,2]
[370092842,1751878293530,-460.0,0.00019161,2]
[370092843,1751878293541,-460.0,0.00019161,2]
[370092844,1751878293552,-460.14,0.00019161,2]
[370092845,1751878293561,-460.0,0.00019161,2]
[370092846,1751878293571,-460.0,0.00019161,2]
[370092847,1751878293580,-460.0,0.00019161,2]
[370092848,1751878293590,-503.25,0.00019161,2]
[370092849,1751878293599,-500.0,0.00019161,2]
[370092850,1751878293609,-1790.38,0.00019161,2]
[370092851,1751878293619,-500.0,0.00019161,2]
[370092852,1751878293628,-1020.84,0.00019161,2]
[370092853,1751878293639,-460.0,0.00019161,2]
[370092854,1751878293649,-628.75,0.00019161,2]
[370092855,1751878293659,-724.26,0.00019161,2]
[370092856,1751878293668,-599.29,0.00019161,2]
[370092857,1751878293678,-618.64,0.00019161,2]
[370092858,1751878293688,-460.0,0.00019161,2]
[370092859,1751878293699,-460.0,0.00019161,2]
[370092860,1751878293710,-460.0,0.00019161,2]
[370092861,1751878293720,-736.7,0.00019161,2]
[370092862,1751878293730,-513.26,0.00019161,2]
[370092863,1751878293739,-2101.7,0.00019161,2]
[370092864,1751878293749,-701.27,0.00019161,2]
[370092865,1751878293760,-460.0,0.00019161,2]
[370092866,1751878293769,-501.61,0.00019161,2]
[370092867,1751878293779,-621.18,0.00019161,2]
[370092868,1751878293790,-460.0,0.00019161,2]
[370092869,1751878293800,-460.0,0.00019161,2]
[370092870,1751878293811,-460.0,0.00019161,2]
[370092871,1751878293823,-460.0,0.00019161,2]
[370092872,1751878293834,-460.0,0.00019161,2]
[370092873,1751878293844,-460.0,0.00019161,2]
[370092874,1751878293853,-1588.08,0.00019161,2]
[370092875,1751878293863,-460.0,0.00019161,2]
[370092876,1751878293872,-1502.2,0.00019161,2]
[370092877,1751878293882,-488.95029085,0.00019161,2]
[370092878,1751878293892,-603.3,0.00019161,2]
[370092879,1751878293902,-645.22,0.00019161,2]
[370092880,1751878293912,-460.0,0.00019161,2]
[370092881,1751878293922,-460.0,0.00019161,2]
[370092882,1751878293933,-460.0,0.00019161,2]
[370092883,1751878293942,-460.0,0.00019161,2]
[370092884,1751878293951,-802.16,0.00019161,2]
[370092885,1751878293961,-460.0,0.00019161,2]
[370092886,1751878293970,-582.95,0.00019161,2]
[370092887,1751878293981,-460.0,0.00019161,2]
[370092888,1751878293991,-518.66,0.00019161,2]
[370092889,1751878294000,-461.06,0.00019161,2]
[370092890,1751878294010,-460.0,0.00019161,2]
[370092891,1751878294021,-882.2,0.00019161,2]
[370092892,1751878294031,-461.22262982,0.00019161,2]
[370092893,1751878294041,-460.0,0.00019161,2]
[370092894,1751878294051,-460.0,0.00019161,2]
[370092895,1751878294061,-466.33,0.00019161,2]
[370092896,1751878294071,-811.29,0.00019161,2]
[370092897,1751878294257,-244.82482703,0.00019161,2]
[370092898,1751878294267,-460.0,0.00019163,2]
[370092899,1751878294278,-460.0,0.00019163,2]
[370092900,1751878294287,-460.0,0.00019163,2]
[370092901,1751878294297,-575.59,0.00019163,2]
[370092902,1751878294306,-460.0,0.00019163,2]
[370092903,1751878294316,-460.0,0.00019163,2]
[370092904,1751878294326,-460.0,0.00019163,2]
[370092905,1751878294336,-460.0,0.00019163,2]
[370092906,1751878294346,-189.64653,0.00019164,2]
[370092907,1751878294355,-189.64653,0.00019164,2]
[370092908,1751878294366,-211.911253,0.00019164,2]
[370092909,1751878294376,-211.911253,0.00019164,2]
[370092910,1751878294386,-151.0,0.00019164,2]
[370092911,1751878294395,-151.0,0.00019164,2]
[370092912,1751878294405,-216.83981446,0.00019165,2]
[370092913,1751878294416,-151.0,0.00019165,2]
[370092914,1751878294426,-857.698891,0.00019165,2]
[370092915,1751878294437,-857.698891,0.00019165,2]
[370092916,1751878294447,-460.0,0.00019166,2]
[370092917,1751878294457,-1820.82,0.00019166,2]
[370092918,1751878294468,-460.0,0.00019166,2]
[370092919,1751878294477,-460.0,0.00019166,2]
[370092920,1751878294487,-697.17,0.00019166,2]
[370092921,1751878294497,-460.0,0.00019166,2]
[370092922,1751878294508,-460.0,0.00019166,2]
[370092923,1751878294517,-584.48,0.00019166,2]
[370092924,1751878294528,-686.19,0.00019166,2]
[370092925,1751878294538,-460.0,0.00019166,2]
[370092926,1751878294549,-460.0,0.00019166,2]
[370092927,1751878294558,-460.0,0.00019166,2]
[370092928,1751878294567,-460.0,0.00019166,2]
[370092929,1751878294578,-891.26,0.00019166,2]
[370092930,1751878294587,-460.0,0.00019166,2]
[370092931,1751878294597,-597.07,0.00019166,2]
[370092932,1751878294607,-460.0,0.00019166,2]
[370092933,1751878294617,-511.02,0.00019166,2]
[370092934,1751878294627,-461.69,0.00019166,2]
[370092935,1751878294636,-460.0,0.00019166,2]
[370092936,1751878294646,-460.0,0.00019166,2]
[370092937,1751878294656,-460.0,0.00019166,2]
[370092938,1751878294666,-460.0,0.00019166,2]
[370092939,1751878294676,-460.0,0.00019166,2]
[370092940,1751878294686,-350.876114,0.00019167,2]
[370092941,1751878294696,-192.76463,0.00019167,2]
[370092942,1751878294705,-460.0,0.00019167,2]
[370092943,1751878294715,-460.0,0.00019167,2]
[370092944,1751878294726,-460.0,0.00019167,2]
[370092945,1751878294735,-460.0,0.00019167,2]
[370092946,1751878294745,-460.0,0.00019167,2]
[370092947,1751878294755,-460.0,0.00019167,2]
[370092948,1751878294764,-579.14,0.00019167,2]
[370092949,1751878294775,-500.0,0.00019173,2]
[370092950,1751878294784,-500.0,0.00019173,2]
[370092951,1751878294794,-500.0,0.00019173,2]
[370092952,1751878294804,-500.0,0.00019173,2]
[370092953,1751878294814,-200.66583734,0.00019178,2]
[370092954,1751878294827,-812.794636,0.00019178,2]
[370092955,1751878294837,-666.0,0.00019178,2]
[370092956,1751878294847,-151.0,0.00019191,2]
[370092957,1751878294856,-639.905489,0.00019191,2]
[370092958,1751878294867,-639.905489,0.00019191,2]
[370092959,1751878294876,-151.0,0.00019191,2]
[370092960,1751878294886,-25000.0,0.00019191,2]
[370092961,1751878294896,-151.0,0.00019191,2]
[370092962,1751878294906,-151.0,0.00019191,2]
[370092963,1751878294916,-203.28745362,0.00019191,2]
[370092964,1751878294926,-16788.50192037,0.00019191,2]
[370092965,1751878294935,-280.00135279,0.00019191,2]
[370092966,1751878294946,-151.0,0.00019191,2]
[370092967,1751878294955,-151.0,0.00019191,2]
[370092968,1751878294966,-500.0,0.00019191,2]
[370092969,1751878294977,-207.4,0.00019191,2]
[370092970,1751878294987,-690.642,0.00019191,2]
[370092971,1751878294997,-151.0,0.00019191,2]
[370092972,1751878295006,-500.0,0.00019191,2]
[370092973,1751878295015,-151.0,0.00019191,2]
[370092974,1751878295025,-500.0,0.00019191,2]
[370092975,1751878295034,-500.0,0.00019191,2]
[370092976,1751878295043,-151.0,0.00019191,2]
[370092977,1751878295053,-500.0,0.00019191,2]
[370092978,1751878295062,-151.0,0.00019191,2]
[370092979,1751878295071,-151.0,0.00019191,2]
[370092980,1751878295081,-151.0,0.00019191,2]
[370092981,1751878295090,-500.0,0.00019191,2]
[370092982,1751878295099,-151.0,0.00019191,2]
[370092983,1751878295109,-151.0,0.00019191,2]